bitfinex/quotes_SOLUSD_20241016
["timestamp","ask_amount","ask_price","bid_price","bid_amount"]
[1729073236318,16.0757,155.52,155.42,23.776884]
[1729073236533,6.4322,155.47,155.42,23.776884]
[1729073238424,6.4325,155.46,155.42,23.776884]
[1729073238929,6.4315,155.49,155.42,23.776884]
[1729073239128,6.4319,155.48,155.42,23.776884]
[1729073239442,6.4322,155.47,155.42,23.776884]
[1729073246339,6.4322,155.47,155.44,23.776884]
[1729073246519,6.4322,155.47,155.42,23.776884]
[1729073247048,20.0,155.51,155.42,23.776884]
[1729073247339,20.0,155.51,155.44,23.776884]
[1729073247533,6.4313,155.49,155.44,23.776884]
[1729073248535,6.4313,155.49,155.43,23.776884]
[1729073248732,6.4313,155.49,155.45,23.776884]
[1729073248939,6.4313,155.49,155.43,23.776884]
[1729073249121,6.4313,155.49,155.45,23.776884]
[1729073249328,6.4313,155.49,155.43,23.776884]
[1729073249641,6.4313,155.49,155.45,23.776884]
[1729073250620,6.4309,155.5,155.45,23.776884]
[1729073251324,6.4307,155.51,155.45,23.776884]
[1729073251519,15.511,155.53,155.45,23.776884]
[1729073251731,6.4301,155.52,155.45,23.776884]
[1729073252144,16.0692,155.58,155.47,23.776884]
[1729073252351,6.429,155.55,155.47,23.776884]
[1729073254439,20.0,155.57,155.47,23.776884]
[1729073254622,6.4292,155.54,155.47,23.776884]
[1729073256729,6.4289,155.55,155.47,23.776884]
[1729073256953,6.4289,155.55,155.48,20.0]
[1729073257152,6.4289,155.55,155.49,23.776884]
[1729073258353,6.4292,155.54,155.49,23.776884]
[1729073258731,16.0692,155.58,155.49,23.776884]
[1729073258940,6.4289,155.55,155.49,23.776884]
[1729073259758,6.4294,155.54,155.49,23.776884]
[1729073260256,6.4287,155.56,155.49,23.776884]
[1729073260659,6.4288,155.55,155.49,23.776884]
[1729073262243,20.0,155.58,155.49,23.776884]
[1729073262454,6.429,155.55,155.49,23.776884]
[1729073262657,0.1,155.57,155.43,15.1217]
[1729073262838,41.9958,155.56,155.45,20.0]
[1729073263164,61.3458,155.56,155.45,20.0]
[1729073263465,41.9958,155.56,155.45,20.0]
[1729073263667,41.9958,155.56,155.47,20.0]
[1729073263848,21.9958,155.56,155.48,12.74279567]
[1729073264037,21.9958,155.56,155.48,23.776884]
[1729073264435,21.9958,155.56,155.47,20.0]
[1729073264663,6.4303,155.52,155.46,20.0]
[1729073264870,6.4303,155.52,155.47,23.776884]
[1729073266956,6.43,155.53,155.47,23.776884]
[1729073268042,38.067,155.56,155.47,23.776884]
[1729073268358,6.4303,155.52,155.47,23.776884]
[1729073270841,38.067,155.56,155.47,23.776884]
[1729073271053,6.4297,155.53,155.47,23.776884]
[1729073273862,15.8373,155.56,155.49,23.776884]
[1729073274254,6.4288,155.55,155.49,23.776884]
[1729073274839,15.8373,155.56,155.49,23.776884]
[1729073279068,6.4282,155.57,155.5,20.0]
[1729073279267,6.4282,155.57,155.51,23.776884]
[1729073280169,22.2777,155.61,155.51,23.776884]
[1729073280170,6.4276,155.58,155.51,23.776884]
[1729073280369,20.0,155.6,155.51,23.776884]
[1729073280583,36.0676,155.6,155.46,32.74279567]
[1729073280767,6.4297,155.53,155.48,20.0]
[1729073280966,6.4293,155.54,155.48,20.0]
[1729073281353,6.4293,155.54,155.47,20.0]
[1729073281572,15.0023,155.56,155.47,20.0]
[1729073281765,6.4289,155.55,155.47,20.0]
[1729073282284,6.4289,155.55,155.49,20.0]
[1729073282750,15.0023,155.56,155.5,23.776884]
[1729073284457,20.0,155.6,155.5,36.51967967]
[1729073284458,35.4064,155.6,155.5,36.51967967]
[1729073284649,6.4278,155.58,155.51,20.0]
[1729073284849,6.4278,155.58,155.52,23.776884]
[1729073285071,6.4271,155.59,155.52,23.776884]
[1729073285441,41.8331,155.6,155.52,23.776884]
[1729073285646,6.4274,155.59,155.52,23.776884]
[1729073286673,35.4064,155.6,155.52,23.776884]
[1729073286974,6.4272,155.59,155.52,23.776884]
[1729073288674,21.8331,155.6,155.52,23.776884]
[1729073289662,15.4064,155.6,155.52,23.776884]
[1729073289872,15.4064,155.6,155.54,23.776884]
[1729073290892,6.4264,155.61,155.54,23.776884]
[1729073291174,15.3009,155.64,155.54,23.776884]
[1729073291556,6.4259,155.62,155.54,23.776884]
[1729073293679,6.4256,155.63,155.54,23.776884]
[1729073293867,0.6285554,155.67,155.55,32.74279567]
[1729073294174,6.4251,155.64,155.57,12.74279567]
[1729073294347,6.4246,155.65,155.58,23.776884]
[1729073296457,6.4251,155.64,155.55,36.2954]
[1729073296655,6.4251,155.64,155.57,20.0]
[1729073296852,6.4247,155.65,155.57,20.0]
[1729073299767,6.4249,155.65,155.57,20.0]
[1729073300163,6.4253,155.64,155.57,20.0]
[1729073300851,20.6285554,155.67,155.57,20.0]
[1729073301075,6.4247,155.65,155.57,20.0]
[1729073302069,0.6285554,155.67,155.56,23.776884]
[1729073302268,6.4254,155.64,155.56,23.776884]
[1729073303285,6.426,155.62,155.52,20.0]
[1729073303589,6.426,155.62,155.54,20.0]
[1729073306292,22.8172,155.63,155.54,20.0]
[1729073306859,16.3915,155.63,155.54,20.0]
[1729073307074,6.4259,155.62,155.54,20.0]
[1729073308096,16.3915,155.63,155.55,23.776884]
[1729073308277,22.8169,155.63,155.55,23.776884]
[1729073308992,16.3915,155.63,155.55,23.776884]
[1729073309379,16.3915,155.63,155.55,36.51967967]
[1729073309588,22.8171,155.63,155.55,36.51967967]
[1729073309894,6.4264,155.61,155.54,20.0]
[1729073310068,6.4259,155.62,155.54,20.0]
[1729073310570,6.4259,155.62,155.54,32.74279567]
[1729073313088,16.3915,155.63,155.55,23.776884]
[1729073313278,22.817,155.63,155.55,23.776884]
[1729073313682,16.3915,155.63,155.56,12.74279567]
[1729073314081,6.4245,155.66,155.57,23.776884]
[1729073314380,6.4245,155.66,155.58,12.74279567]
[1729073314575,15.6710554,155.67,155.57,23.776884]
[1729073314780,6.4249,155.65,155.57,23.776884]
[1729073315865,6.4249,155.65,155.58,20.0]
[1729073317879,6.4242,155.66,155.58,32.74279567]
[1729073318191,15.6710554,155.67,155.59,23.776884]
[1729073318372,15.6710554,155.67,155.6,12.74279567]
[1729073318694,15.6710554,155.67,155.61,20.0]
[1729073319204,15.6710554,155.67,155.62,23.776884]
[1729073319876,0.6285554,155.67,155.62,23.776884]
[1729073321068,0.6285554,155.67,155.62,36.51967967]
[1729073322813,0.6285554,155.67,155.63,20.0]
[1729073325094,0.6285554,155.67,155.56,15.9175]
[1729073325295,0.6285554,155.67,155.63,20.0]
[1729073325686,0.6285554,155.67,155.65,20.0]
[1729073325890,0.6285554,155.67,155.66,32.74279567]
[1729073326374,0.6285554,155.67,155.66,36.51967967]
[1729073327585,0.6285554,155.67,155.66,56.51967967]
[1729073327898,0.6285554,155.67,155.66,20.0]
[1729073328077,0.6285554,155.67,155.62,20.0]
[1729073328277,0.6285554,155.67,155.64,43.776884]
[1729073330884,0.6285554,155.67,155.66,20.0]
[1729073334286,0.6285554,155.67,155.65,20.0]
[1729073334500,0.6285554,155.67,155.62,43.776884]
[1729073334690,0.6285554,155.67,155.64,20.0]
[1729073335200,0.6285554,155.67,155.65,12.74279567]
[1729073335503,0.6285554,155.67,155.66,20.0]
[1729073337279,0.6285554,155.67,155.66,43.776884]
[1729073337691,0.6285554,155.67,155.66,20.0]
[1729073338290,0.6285554,155.67,155.65,20.0]
[1729073340093,0.6285554,155.67,155.66,12.74279567]
[1729073340293,0.6285554,155.67,155.66,32.74279567]
[1729073340494,0.6285554,155.67,155.66,20.0]
[1729073340901,0.6285554,155.67,155.65,20.0]
[1729073341985,0.6285554,155.67,155.66,32.74279567]
[1729073342801,0.6285554,155.67,155.66,56.51967967]
[1729073344101,0.6285554,155.67,155.66,32.74279567]
[1729073344311,0.6285554,155.67,155.65,20.0]
[1729073345784,0.6285554,155.67,155.64,32.74279567]
[1729073346383,0.6285554,155.67,155.66,32.74279567]
[1729073346591,0.6285554,155.67,155.66,56.51967967]
[1729073347401,0.6285554,155.67,155.66,32.74279567]
[1729073348011,0.6285554,155.67,155.65,20.0]
[1729073348305,0.6285554,155.67,155.63,12.74279567]
[1729073349413,0.6285554,155.67,155.64,20.0]
[1729073350610,0.6285554,155.67,155.65,12.74279567]
[1729073350914,0.6285554,155.67,155.61,20.0]
[1729073350915,0.6285554,155.67,155.62,23.776884]
[1729073351082,0.6285554,155.67,155.63,20.0]
[1729073351508,0.6285554,155.67,155.64,12.74279567]
[1729073353100,0.6285554,155.67,155.66,12.74279567]
[1729073353306,0.6285554,155.67,155.66,36.51967967]
[1729073353986,0.6285554,155.67,155.66,56.51967967]
[1729073359007,0.6285554,155.67,155.66,43.776884]
[1729073359219,0.6285554,155.67,155.66,20.0]
[1729073360694,0.6285554,155.67,155.63,20.0]
[1729073360894,0.6285554,155.67,155.66,20.0]
[1729073362495,0.6285554,155.67,155.63,20.0]
[1729073362700,0.6285554,155.67,155.65,20.0]
[1729073363095,0.6285554,155.67,155.66,12.74279567]
[1729073363322,0.6285554,155.67,155.66,32.74279567]
[1729073365811,0.6285554,155.67,155.66,60.30936881]
[1729073366789,0.6285554,155.67,155.66,47.56657314]
[1729073367016,0.6285554,155.67,155.66,60.30936881]
[1729073373420,0.6285554,155.67,155.66,61.91700865]
[1729073380620,0.6285554,155.67,155.66,25.39732898]
[1729073381011,0.6285554,155.67,155.66,38.14012465]
[1729073381323,0.6285554,155.67,155.66,38.13996521]
[1729073383830,0.6285554,155.67,155.66,61.91684921]
[1729073384016,0.6285554,155.67,155.66,25.39716954]
[1729073384222,0.6285554,155.67,155.66,38.13996521]
[1729073384730,0.6285554,155.67,155.66,61.91684921]
[1729073388011,15.1441,155.74,155.67,23.776884]
[1729073388238,15.1441,155.74,155.71,12.74279567]
[1729073388535,15.1441,155.74,155.72,5.39716954]
[1729073388837,15.1441,155.74,155.73,5.39716954]
[1729073389217,15.3602,155.78,155.74,23.776884]
[1729073389536,15.3602,155.78,155.75,5.38778966]
[1729073389711,15.3602,155.78,155.76,1.60671797]
[1729073389912,15.3602,155.78,155.75,3.78107169]
[1729073390144,15.3602,155.78,155.76,1.60672349]
[1729073390313,15.3602,155.78,155.75,1.60672349]
[1729073390515,15.3602,155.78,155.73,20.0]
[1729073390516,15.3602,155.78,155.69,23.776884]
[1729073390821,15.3602,155.78,155.72,20.0]
[1729073391027,15.3602,155.78,155.73,5.38517934]
[1729073391223,15.3602,155.78,155.74,1.60678635]
[1729073391424,6.2904,155.77,155.74,1.60678635]
[1729073391622,6.5331,155.74,155.69,1.6071524]
[1729073391924,15.0861,155.73,155.64,12.74279567]
[1729073392240,15.0861,155.73,155.65,5.38482775]
[1729073392415,15.0861,155.73,155.65,1.6071524]
[1729073392830,15.0861,155.73,155.64,12.74279567]
[1729073393174,15.0861,155.73,155.66,12.74279567]
[1729073394541,15.0861,155.73,155.68,12.74279567]
[1729073398242,15.0861,155.73,155.67,20.0]
[1729073401962,15.0861,155.73,155.68,12.74279567]
[1729073406143,15.7211,155.77,155.7,12.74279567]
[1729073411547,15.2211,155.77,155.7,12.74279567]
[1729073418357,0.1,155.76,155.63,15.3653]
[1729073418563,23.876884,155.74,155.64,3.78581508]
[1729073418768,15.5384,155.7,155.59,0.5224]
[1729073419058,22.0624,155.7,155.6,3.78630653]
[1729073419353,28.485,155.7,155.59,13.26519567]
[1729073420556,28.485,155.7,155.6,20.0]
[1729073421662,28.485,155.7,155.59,33.26519567]
[1729073422249,6.4238,155.67,155.59,0.5224]
[1729073422549,6.4011,155.64,155.59,0.5224]
[1729073422751,16.1388,155.63,155.59,0.5224]
[1729073423275,23.876884,155.62,155.59,0.5224]
[1729073423443,23.876884,155.6,155.59,0.5224]
[1729073423649,21.6151,155.58,155.46,16.52036594]
[1729073423947,21.6151,155.58,155.48,12.74279567]
[1729073425162,21.6151,155.58,155.49,20.0]
[1729073429671,21.6151,155.58,155.5,12.74279567]
[1729073430345,21.6151,155.58,155.51,23.776884]
[1729073431052,15.5678,155.58,155.52,32.74279567]
[1729073431247,22.8421,155.62,155.52,32.74279567]
[1729073431474,22.8421,155.62,155.53,23.776884]
[1729073431783,22.8421,155.62,155.54,12.74279567]
[1729073437366,22.8421,155.62,155.47,0.1]
[1729073437571,22.8421,155.62,155.53,12.74279567]
[1729073438659,6.4268,155.6,155.51,12.74279567]
[1729073438971,23.776884,155.61,155.51,12.74279567]
[1729073439280,30.203184,155.61,155.51,12.74279567]
[1729073439463,6.4268,155.6,155.51,12.74279567]
[1729073442183,6.4268,155.6,155.49,12.74279567]
[1729073442381,6.4277,155.58,155.46,23.776884]
[1729073442566,12.5348,155.56,155.45,16.3454]
[1729073442969,12.5348,155.56,155.44,12.74279567]
[1729073442970,23.876884,155.55,155.44,12.74279567]
[1729073443262,15.2028,155.51,155.41,35.03119567]
[1729073443990,15.2028,155.51,155.41,22.2884]
[1729073444283,15.2028,155.51,155.42,20.0]
[1729073445457,23.776884,155.5,155.38,19.89347986]
[1729073445662,6.2865,155.49,155.37,22.6091]
[1729073446859,6.2865,155.49,155.38,23.776884]
[1729073447383,6.2865,155.49,155.39,20.0]
[1729073451784,12.7177,155.49,155.39,20.0]
[1729073452479,30.208584,155.48,155.39,20.0]
[1729073452687,30.208584,155.48,155.38,20.0]
[1729073453262,23.776884,155.48,155.38,20.0]
[1729073453967,6.2865,155.49,155.39,23.776884]
[1729073454172,6.2865,155.49,155.4,20.0]
[1729073455863,6.2865,155.49,155.4,39.89347986]
[1729073458388,15.2028,155.51,155.41,23.776884]
[1729073458588,15.2028,155.51,155.43,23.776884]
[1729073459093,15.2028,155.51,155.44,39.89347986]
[1729073459388,6.5231,155.53,155.44,39.89347986]
[1729073460660,16.5321,155.55,155.45,23.776884]
[1729073462196,16.5321,155.55,155.44,55.20647986]
[1729073462197,16.5321,155.55,155.47,23.776884]
[1729073464195,16.5321,155.55,155.46,39.89347986]
[1729073464490,16.5321,155.55,155.45,20.0]
[1729073464793,6.4294,155.54,155.45,20.0]
[1729073465294,6.4294,155.54,155.44,20.0]
[1729073465489,6.4297,155.53,155.42,19.89347986]
[1729073465868,16.7321,155.55,155.45,12.72804119]
[1729073465869,16.5321,155.55,155.45,12.72804119]
[1729073466087,22.961,155.55,155.45,12.72804119]
[1729073467195,6.4292,155.54,155.45,12.72804119]
[1729073467897,6.4292,155.54,155.42,39.88273969]
[1729073468080,6.4292,155.54,155.43,23.776884]
[1729073468476,6.4299,155.53,155.43,23.776884]
[1729073468681,6.4297,155.53,155.43,23.776884]
[1729073468884,6.43,155.52,155.42,39.88273969]
[1729073469267,6.43,155.52,155.41,20.0]
[1729073469469,6.4309,155.5,155.41,20.0]
[1729073469803,13.0022,155.5,155.41,20.0]
[1729073470774,6.4314,155.49,155.4,15.8085]
[1729073471100,15.3964,155.48,155.4,15.8085]
[1729073475978,15.3964,155.48,155.41,23.776884]
[1729073476179,6.5713,155.5,155.41,23.776884]
[1729073476676,6.5713,155.5,155.39,6.072]
[1729073476879,6.4317,155.48,155.4,20.0]
[1729073477092,13.0023,155.5,155.4,20.0]
[1729073478893,6.5713,155.5,155.4,20.0]
[1729073480102,13.0022,155.5,155.4,20.0]
[1729073481490,6.5713,155.5,155.41,23.776884]
[1729073486604,6.5713,155.5,155.4,23.776884]
[1729073488496,15.5113,155.52,155.42,23.776884]
[1729073488682,15.5113,155.52,155.44,23.776884]
[1729073489219,15.5113,155.52,155.43,19.88273969]
[1729073489800,15.5113,155.52,155.47,12.72454625]
[1729073490187,15.5113,155.52,155.45,12.72454625]
[1729073492294,15.5113,155.52,155.43,23.776884]
[1729073492295,15.5113,155.52,155.47,12.72454625]
[1729073492600,21.9414,155.52,155.43,20.0]
[1729073495103,15.5113,155.52,155.44,12.72454625]
[1729073499093,15.5113,155.52,155.44,12.72454625]
[1729073528262,15.5113,155.52,155.45,3.69034638]
[1729073528742,15.5113,155.52,155.44,12.72454625]
[1729073528928,15.5113,155.52,155.45,3.69030881]
[1729073529234,15.5113,155.52,155.44,12.72454625]
[1729073529545,15.5113,155.52,155.45,3.69091773]
[1729073529745,15.5113,155.52,155.44,12.72454625]
[1729073529944,15.5113,155.52,155.45,3.69091773]
[1729073530326,15.5113,155.52,155.44,12.72454625]
[1729073530629,15.5113,155.52,155.45,3.6916261]
[1729073530948,15.5113,155.52,155.44,12.72454625]
[1729073531124,15.5113,155.52,155.45,3.69162669]
[1729073531316,15.5113,155.52,155.44,12.72454625]
[1729073531517,1.21905843,155.56,155.5,12.72454625]
[1729073531518,1.11905843,155.56,155.5,12.72454625]
[1729073531744,1.11905843,155.56,155.53,12.72454625]
[1729073531951,15.773,155.59,155.53,12.72454625]
[1729073536353,15.773,155.59,155.51,12.72454625]
[1729073537727,6.4285,155.56,155.47,15.4255]
[1729073537945,6.4292,155.54,155.47,12.72454625]
[1729073538352,6.4289,155.55,155.47,12.72454625]
[1729073540340,93.876884,155.58,155.47,12.72454625]
[1729073540555,23.776884,155.55,155.47,12.72454625]
[1729073541055,6.4287,155.56,155.47,12.72454625]
[1729073541444,23.776884,155.58,155.51,12.72454625]
[1729073542042,22.2002,155.59,155.51,12.72454625]
[1729073543056,15.773,155.59,155.51,12.72454625]
[1729073544036,6.4261,155.62,155.53,12.72454625]
[1729073544237,6.4264,155.61,155.53,12.72454625]
[1729073544439,6.4276,155.58,155.48,16.1888]
[1729073544646,6.4272,155.59,155.5,12.72454625]
[1729073549668,6.4272,155.59,155.51,23.776884]
[1729073559050,6.4272,155.59,155.5,23.776884]
[1729073559272,6.4272,155.59,155.52,23.776884]
[1729073561676,77.91948014,155.63,155.52,23.776884]
[1729073561876,7.81948014,155.63,155.54,23.776884]
[1729073562171,6.426,155.62,155.54,23.776884]
[1729073564069,1.11852656,155.63,155.56,23.776884]
[1729073564460,21.8183,155.64,155.56,23.776884]
[1729073565788,15.393,155.64,155.56,23.776884]
[1729073565965,15.393,155.64,155.58,23.776884]
[1729073568389,21.8181,155.64,155.58,23.776884]
[1729073570086,15.393,155.64,155.58,23.776884]
[1729073572990,6.424,155.67,155.59,12.72454625]
[1729073573585,6.424,155.67,155.58,23.776884]
[1729073573586,6.4243,155.66,155.58,23.776884]
[1729073574384,6.4244,155.66,155.58,23.776884]
[1729073576779,6.4249,155.65,155.58,23.776884]
[1729073577168,16.5981,155.68,155.58,23.776884]
[1729073577497,6.4244,155.66,155.58,23.776884]
[1729073577792,6.4251,155.64,155.58,23.776884]
[1729073577995,6.4247,155.65,155.58,23.776884]
[1729073578470,6.4243,155.66,155.58,23.776884]
[1729073578670,16.4981,155.68,155.58,23.776884]
[1729073578671,6.4247,155.65,155.58,23.776884]
[1729073580079,16.4981,155.68,155.58,23.776884]
[1729073580873,6.4251,155.64,155.58,23.776884]
[1729073581183,6.4251,155.64,155.57,23.776884]
[1729073584893,6.4262,155.62,155.56,23.776884]
[1729073586702,6.4253,155.64,155.56,23.776884]
[1729073587077,6.4243,155.66,155.57,12.72454625]
[1729073587277,6.4243,155.66,155.58,23.776884]
[1729073587508,6.4239,155.67,155.59,12.72454625]
[1729073587824,6.4242,155.66,155.6,23.776884]
[1729073589373,6.4238,155.67,155.6,23.776884]
[1729073589578,6.4245,155.66,155.6,23.776884]
[1729073590198,6.4251,155.64,155.58,23.776884]
[1729073590372,6.4251,155.64,155.55,32.72454625]
[1729073592175,6.4251,155.64,155.58,23.776884]
[1729073592482,6.4251,155.64,155.56,23.776884]
[1729073593383,6.4255,155.63,155.56,23.776884]
[1729073594884,0.1,155.66,155.56,23.776884]
[1729073595086,6.426,155.62,155.56,23.776884]
[1729073595300,87.3784169,155.67,155.56,23.776884]
[1729073595491,87.2784169,155.67,155.56,23.776884]
[1729073595691,16.4981,155.68,155.59,23.776884]
[1729073596379,6.4255,155.63,155.57,23.776884]
[1729073598210,6.4249,155.65,155.57,23.776884]
[1729073598388,16.4981,155.68,155.59,23.776884]
[1729073598785,6.4238,155.67,155.59,23.776884]
[1729073601215,16.4981,155.68,155.62,12.72454625]
[1729073601508,1.11796589,155.72,155.62,12.72454625]
[1729073601509,15.5541,155.72,155.63,23.776884]
[1729073601685,15.5541,155.72,155.66,12.72454625]
[1729073602011,6.4211,155.74,155.67,23.776884]
[1729073602214,16.0131,155.75,155.67,23.776884]
[1729073602503,22.4336,155.75,155.67,23.776884]
[1729073602886,6.4211,155.74,155.67,23.776884]
[1729073603389,16.0131,155.75,155.67,23.776884]
[1729073603981,12.8876,155.77,155.69,23.776884]
[1729073604309,6.4201,155.76,155.69,23.776884]
[1729073604484,12.8875,155.77,155.69,23.776884]
[1729073604693,6.4678,155.77,155.69,23.776884]
[1729073605208,12.8875,155.77,155.69,23.776884]
[1729073605395,6.4197,155.77,155.69,23.776884]
[1729073605590,21.7781,155.79,155.69,23.776884]
[1729073605807,21.7781,155.79,155.7,12.72454625]
[1729073605999,21.7781,155.79,155.71,23.776884]
[1729073606313,6.4194,155.78,155.71,23.776884]
[1729073606807,6.4197,155.77,155.71,23.776884]
[1729073607510,6.4202,155.76,155.71,23.776884]
[1729073607884,6.4205,155.75,155.71,23.776884]
[1729073608105,6.421,155.74,155.67,16.4873]
[1729073608286,6.421,155.74,155.68,23.776884]
[1729073608691,6.4213,155.73,155.67,23.776884]
[1729073609406,6.421,155.74,155.67,23.776884]
[1729073613327,31.6072,155.79,155.63,22.346]
[1729073613328,15.3592,155.79,155.72,12.72454625]
[1729073613514,15.3592,155.79,155.73,23.776884]
[1729073613703,6.4198,155.77,155.73,23.776884]
[1729073613892,6.4198,155.77,155.7,12.72454625]
[1729073614096,15.3592,155.79,155.7,23.776884]
[1729073614289,6.4202,155.76,155.7,23.776884]
[1729073616997,15.3592,155.79,155.7,23.776884]
[1729073617203,6.4196,155.78,155.7,23.776884]
[1729073618125,6.4196,155.78,155.7,36.50143025]
[1729073618349,6.4202,155.76,155.7,23.776884]
[1729073619423,101.6066,155.79,155.65,22.5224]
[1729073619624,101.6066,155.79,155.66,32.72454625]
[1729073619810,6.4213,155.74,155.66,32.72454625]
[1729073620825,6.4213,155.74,155.68,12.72454625]
[1729073621028,6.4213,155.74,155.69,23.776884]
[1729073624602,31.4066,155.79,155.69,23.776884]
[1729073624925,6.4202,155.76,155.69,23.776884]
[1729073625222,15.3592,155.79,155.72,12.72454625]
[1729073625718,6.4197,155.77,155.71,23.776884]
[1729073626303,6.4206,155.75,155.66,20.0]
[1729073626505,6.4206,155.75,155.69,12.72454625]
[1729073626717,6.4197,155.77,155.69,12.72454625]
[1729073626921,15.3592,155.79,155.69,12.72454625]
[1729073627126,6.4201,155.76,155.69,12.72454625]
[1729073627916,6.4201,155.76,155.7,23.776884]
[1729073630604,6.4208,155.75,155.66,20.0]
[1729073630799,6.421,155.74,155.68,20.0]
[1729073631002,6.421,155.74,155.69,23.776884]
[1729073634727,6.4205,155.76,155.7,23.776884]
[1729073638313,1.11743962,155.8,155.7,23.776884]
[1729073638513,92.84793641,155.81,155.7,23.776884]
[1729073638514,86.1455,155.81,155.7,23.776884]
[1729073638707,87.26279535,155.81,155.7,23.776884]
[1729073639505,6.4202,155.76,155.7,23.776884]
[1729073640851,6.4205,155.75,155.7,23.776884]
[1729073641432,6.4204,155.76,155.7,23.776884]
[1729073641808,6.4198,155.77,155.7,23.776884]
[1729073642512,6.4208,155.75,155.7,23.776884]
[1729073642917,16.4953,155.78,155.69,15.2128]
[1729073643111,86.1502,155.77,155.65,6.0443]
[1729073643312,6.4218,155.72,155.65,6.0443]
[1729073644130,6.4214,155.73,155.65,18.76884625]
[1729073644430,6.4214,155.73,155.66,20.0]
[1729073644827,6.4214,155.73,155.65,18.76884625]
[1729073645027,6.4214,155.73,155.66,23.776884]
[1729073646109,6.4205,155.75,155.67,12.72454625]
[1729073646432,6.4205,155.75,155.68,23.776884]
[1729073646813,6.4212,155.74,155.68,23.776884]
[1729073647016,16.4953,155.78,155.67,23.776884]
[1729073647221,6.4206,155.75,155.69,23.776884]
[1729073647731,6.4197,155.77,155.69,23.776884]
[1729073647927,6.4204,155.76,155.69,23.776884]
[1729073650415,22.9149,155.78,155.69,23.776884]
[1729073650622,6.4197,155.77,155.69,23.776884]
[1729073651022,22.9149,155.78,155.71,23.776884]
[1729073652914,16.4953,155.78,155.71,23.776884]
[1729073654543,6.4198,155.77,155.71,23.776884]
[1729073654714,16.4953,155.78,155.71,23.776884]
[1729073654915,22.9146,155.78,155.71,23.776884]
[1729073657721,16.4953,155.78,155.71,23.776884]
[1729073658031,6.4198,155.77,155.71,23.776884]
[1729073658356,16.4953,155.78,155.71,23.776884]
[1729073658731,6.5637,155.8,155.71,23.776884]
[1729073658944,6.4191,155.79,155.71,23.776884]
[1729073660520,6.4191,155.79,155.73,23.776884]
[1729073662643,6.4196,155.78,155.7,18.92834625]
[1729073662840,6.4196,155.78,155.72,23.776884]
[1729073665231,0.6285554,155.82,155.74,23.776884]
[1729073665431,6.4184,155.8,155.74,23.776884]
[1729073665753,0.1,155.8,155.7,20.0]
[1729073666052,0.1,155.8,155.66,6.4197]
[1729073666053,6.4209,155.74,155.66,19.14424625]
[1729073666226,6.4209,155.74,155.67,3.67722862]
[1729073666429,6.4209,155.74,155.68,3.67722862]
[1729073666641,6.4209,155.74,155.67,3.67722862]
[1729073667031,6.4209,155.74,155.68,23.776884]
[1729073667248,6.4209,155.74,155.67,23.776884]
[1729073667748,6.4209,155.74,155.69,23.776884]
[1729073668451,16.5728,155.81,155.69,23.776884]
[1729073668621,16.5728,155.81,155.71,23.776884]
[1729073669054,1.11711207,155.84,155.83,43.876884]
[1729073669241,3.24,155.96,155.83,43.876884]
[1729073669242,17.2013554,155.98,155.86,20.0]
[1729073669552,17.2013554,155.98,155.9,20.0]
[1729073670027,23.6123554,155.98,155.9,12.72454625]
[1729073670230,7.0395554,155.98,155.91,20.0]
[1729073670429,0.6285554,155.98,155.91,20.0]
[1729073670747,0.6285554,155.98,155.93,12.72454625]
[1729073670950,0.6285554,155.98,155.95,12.72454625]
[1729073671830,0.6285554,155.98,155.93,19.7560231]
[1729073674247,0.6285554,155.98,155.95,19.7560231]
[1729073674926,0.6285554,155.98,155.97,19.7560231]